[Event "AI Cup Div-1 2023"]
[Site "Online"]
[Date "2023.09.25"]
[Round "1.5"]
[White "Mamedyarov, Shakhriyar"]
[Black "Lazavik, Denis"]
[Result "1-0"]
[Annotator "TA"]
[ECO "E20"]
[WhiteElo "2734"]
[BlackElo "2560"]
[PlyCount "87"]
[EventDate "2023.09.18"]
[EventType "k.o."]
[EventCountry "NET"]
[SourceTitle "playchess.com"]
[Source "ChessBase"]
[SourceQuality "1"]
[TimeControl "900+3"]

{[%evp 11,87,1,16,0,0,0,0,0,0,-10,-15,-65,-65,-58,-66,-74,-7,-9,0,-66,-80,-84,-40,-71,-71,-76,-56,-89,-34,-95,-40,-116,-77,-126,-11,-17,-18,-37,0,0,0,0,16,6,52,0,12,16,32,0,7,0,33,32,25,0,43,32,95,56,52,17,25,18,50,35,323,182,858,808,800,847,795,552,29990,29991,29991,29992]} 1. d4 {[%emt 0:00:06]} Nf6 {[%emt 0:05:07]} 2. c4 {[%emt 0:00:04]} e6 {[%emt 0:00:03]} 3. Nc3 {[%emt 0:00:03]} Bb4 {[%emt 0:00:04]} 4. f3 {[%emt 0:00:04][%cal Bf2f3,Bf3e4,Be4e5][%mdl 32]} d5 {[%emt 0:00:08]} 5. a3 {[%emt 0:00:04]} Bxc3+ {[%emt 0:00:04]} 6. bxc3 {[%emt 0:00:04]} c6 {[%emt 0:00:03] [#]} 7. e4 $1 {[%emt 0:00:06] E20: Nimzo-Indian: 4 g3 and 4 f3.} dxe4 {[%emt 0:00:05]} 8. fxe4 {[%emt 0:00:03]} e5 $1 {[%emt 0:00:05]} 9. Nf3 {[%emt 0:00:04] The position is equal.} Bg4 {[%emt 0:00:07] The modern move.} 10. Bd3 {[%emt 0:00:04]} (10. dxe5 Qxd1+ 11. Kxd1 Nxe4 $17) 10... exd4 {[%emt 0:00:33] [#]} 11. O-O $146 {[%emt 0:00:06]} (11. e5 $11 Nh5 12. cxd4 Bxf3 {[%mdl 64] Remove Defender} 13. Qxf3 Qxd4 14. Rb1 Qxe5+ 15. Be2) ({Predecessor:} 11. e5 Nfd7 12. cxd4 Bxf3 13. Qxf3 Qh4+ 14. Qf2 Qxf2+ 15. Kxf2 c5 16. dxc5 Nxc5 17. Be2 {½-½ Volkov,S (2535)-Petrov,N (2535) RUS GP Rapid final 2021 (3)}) 11... dxc3 $15 {[%emt 0:00:16]} 12. e5 {[%emt 0:00:05]} Nfd7 {[%emt 0:00:04]} 13. Bc2 {[%emt 0:00:04] [#]} Na6 {[%emt 0:00:21]} (13... Qe7 $1 $17 14. Rb1 Nb6) 14. Qe1 $11 {[%emt 0:00:11] aiming for Ng5.} Bxf3 {[%emt 0:00:41]} 15. Rxf3 {[%emt 0:00:06]} (15. e6 $1 $11 fxe6 16. Qxe6+ Qe7 17. Qxe7+ Kxe7 18. Rxf3) 15... Qe7 {[%emt 0:00:08]} 16. Bf4 {[%emt 0:00:19]} Nac5 {[%emt 0:00:08]} 17. Qxc3 {[%emt 0:00:05]} Ne6 {[%emt 0:00:06]} 18. Bg3 {[%emt 0:00:12]} O-O {[%emt 0:00:17]} 19. Re1 {[%emt 0:00:08][%cal Og3h4]} Ndc5 {[%emt 0:00:06]} (19... g6 $17) 20. Bf5 {[%emt 0:00:35]} (20. Bh4 $15 Ng5 21. Rg3) 20... Rad8 {[%emt 0:00:08]} (20... g6 $17 21. Bxe6 fxe6) 21. Bf2 {[%emt 0:00:04]} (21. Bh4 $1 $15 Qxh4 22. Rh3 Qxe1+ 23. Qxe1) 21... Rfe8 {[%emt 0:00:54]} 22. h4 {[%emt 0:00:29]} (22. a4 $142) 22... b5 {[%emt 0:00:20]} ({Black should try} 22... Rd7 $17 {Strongly threatening ...Red8.} 23. Rf1 b6) 23. Rf1 {[%emt 0:01:20]} bxc4 {[%emt 0:00:12]} 24. Qxc4 {[%emt 0:01:27]} Rd5 {[%emt 0:00:06]} (24... Nd7 $5 {[%cal Rd7e5]} 25. Re1 Nc7 $11) 25. Bb1 {[%emt 0:01:23] This pair of bishops is nice.} Rf8 {[%emt 0:00:32]} (25... Rxe5 26. Bg3 Rh5 27. Rxf7 Qxf7 28. Rxf7 Kxf7 29. Bf2 $16) 26. Qc3 {[%emt 0:00:26]} (26. Qc2 $5 g6 $8 27. Ba2 $11) 26... Nd7 {[%emt 0:00:39]} 27. Re1 $40 {[%emt 0:00:41][%mdl 128] White is up to no good.} Nd8 {[%emt 0:00:18]} (27... Rd8 $11) 28. Rfe3 {[%emt 0:00:50]} (28. Qc2 g6 $11) (28. Ba2 $14) 28... Ne6 {[%emt 0:00:19]} 29. Qxc6 {[%emt 0:00:14]} (29. Qc2 $5 g6 $8 30. Qxc6 $11) 29... Rd2 {[%emt 0:00:11]} 30. R3e2 {[%emt 0:00:23]} Rxe2 {[%emt 0:00:13]} 31. Rxe2 {[%emt 0:00:03][%cal Be1e2,Be2c2,Bc2c3,Bc3f3,Bf3f6][%mdl 32]} g6 {[%emt 0:00:08]} 32. Qd6 {[%emt 0:00:23]} (32. Bxa7 Nxe5 33. Qa4 Ra8 34. Rxe5 Rxa7 $17) 32... Re8 {[%emt 0:00:06][%cal Bf8e8,Be8d8,Bd8d1][%mdl 32]} 33. Ba2 {[%emt 0:00:46]} Nb6 {[%emt 0:00:23]} 34. Rc2 {[%emt 0:00:19]} Kg7 {[%emt 0:00:14]} ({Better is} 34... Qb7 $14) 35. Rc3 {[%emt 0:01:14] White is much more active.} (35. Bxe6 {simplifies} Qxe6 36. Rc7 Nd5 37. Rxa7 Nf4 38. Qxe6 Rxe6 39. a4) 35... Qb7 {[%emt 0:00:13]} 36. Rf3 {[%emt 0:00:08][%cal Oh4h5]} Rd8 {[%emt 0:00:16]} 37. Qb4 {[%emt 0:00:05][%cal Oh4h5]} Rd1+ {[%emt 0:00:17]} 38. Kh2 {[%emt 0:00:04] Bxe6 is the strong threat.} Qd7 {[%emt 0:00:04][%mdl 8192] Black cannot hold the game after this.} ({Black should play} 38... Qc7 $14) 39. h5 {[%emt 0:00:29]} (39. Bb3 $142 Rd5 40. Bxd5 Nxd5 41. Rd3) 39... Ng5 $2 {[%emt 0:00:13]} (39... Nd5 40. Qb8 Qc7 41. Qxc7 (41. Qxa7 $2 {is the wrong capture.} Qxe5+ 42. Rg3 Qxh5+ 43. Rh3 Qe5+ 44. Rg3 Qa1 $19) (41. Bxa7 Qc1 $15) 41... Ndxc7 42. h6+ (42. Bxa7 Ra1 $16) 42... Kf8 43. Bxa7 Ke8) 40. h6+ $18 {[%emt 0:00:08]} Kg8 {[%emt 0:00:06] Black is weak on the dark squares} 41. Rf6 {[%emt 0:00:14] Black must now prevent e6.} Qe8 {[%emt 0:00:20]} 42. Qf4 {[%emt 0:00:23]} Ne6 {[%emt 0:00:05] [#]} 43. Rxe6 {[%emt 0:00:06][%mdl 576] Clearance} fxe6 {[%emt 0:00:14]} 44. Qf6 {[%emt 0:00:04] Excellently played by Mamedyarov!   Weighted Error Value: White=0.36/Black=0.42} 1-0

[Event "AI Cup Div-1 2023"]
[Site "Online"]
[Date "2023.09.26"]
[Round "2.1"]
[White "Carlsen, Magnus"]
[Black "Nepomniachtchi, Ian"]
[Result "1/2-1/2"]
[Annotator "TA"]
[ECO "C42"]
[WhiteElo "2839"]
[BlackElo "2771"]
[PlyCount "185"]
[EventDate "2023.09.18"]
[EventType "k.o."]
[EventCountry "NET"]
[SourceTitle "playchess.com"]
[Source "ChessBase"]
[SourceQuality "1"]
[TimeControl "900+3"]

{[%evp 16,185,17,18,19,16,27,22,26,0,0,0,16,18,20,18,19,16,39,40,47,59,68,68,199,120,152,163,327,306,312,257,259,251,263,249,262,271,244,249,278,280,266,294,263,190,192,205,197,205,192,196,202,192,191,189,182,143,198,145,145,146,154,154,214,201,220,220,208,212,233,222,228,229,259,257,266,108,108,108,108,108,108,108,108,108,108,12,25,34,34,34,34,32,34,34,35,0,0,5,26,0,0,0,0,0,0,0,0,0,0,0,0,0,0,0,0,0,0,0,50,50,50,0,0,0,0,0,0,0,0,0,0,0,0,0,0,0,0,0,0,0,0,0,0,0,0,0,0,0,0,0,0,0,0,0,0,0,0,0,0,0,0,0,0,0,0,0,0,0,0,0]} 1. e4 {[%emt 0:00:04]} e5 {[%emt 0:00:11]} 2. Nf3 {[%emt 0:00:02]} Nf6 {[%emt 0:00:01]} 3. Nxe5 {[%emt 0:00:02]} d6 {[%emt 0:00:01]} 4. Nf3 {[%emt 0:00:00]} Nxe4 {[%emt 0:00:01]} 5. Qe2 {[%emt 0:00:01]} Qe7 {[%emt 0:00:03]} 6. d3 {[%emt 0:00:00]} Nf6 {[%emt 0:00:04]} 7. Nc3 {[%emt 0:00:01]} Qxe2+ {[%emt 0:00:55]} 8. Bxe2 {[%emt 0:00:02]} Be7 {[%emt 0:00:01]} 9. Bd2 {[%emt 0:00:33]} O-O {[%emt 0:00:02]} 10. O-O-O {[%emt 0:00:02]} a6 {[%emt 0:00:38]} 11. Rhe1 {[%emt 0:00:52]} Re8 {[%emt 0:00:06]} 12. d4 {[%emt 0:00:10]} h6 {[%emt 0:00:13]} 13. Bd3 {[%emt 0:00:28]} Bg4 {[%emt 0:00:16]} 14. h3 {[%emt 0:00:07]} Bxf3 {[%emt 0:00:10]} 15. gxf3 {[%emt 0:00:00]} Nc6 {[%emt 0:00:00]} 16. Ne2 {[%emt 0:00:06]} Nh7 {[%emt 0:01:14]} 17. Rg1 {[%emt 0:00:44]} Bg5 {[%emt 0:00:26]} 18. f4 {[%emt 0:00:07]} Bh4 {[%emt 0:00:01]} 19. Rg2 {[%emt 0:00:16]} Nf8 {[%emt 0:02:05] [#]} (19... Kh8 $14) 20. c3 {[%emt 0:00:48]} ({Better is} 20. Rdg1 $1 $18 Bf6 21. d5) 20... Bf6 {[%emt 0:00:59]} 21. Ng3 {[%emt 0:00:11]} g6 $2 {[%emt 0:00:03]} (21... Nd7 22. Rdg1 Kh8) 22. Nh5 $18 {[%emt 0:00:18]} Bg7 {[%emt 0:00:50]} 23. f5 {[%emt 0:00:04]} gxh5 {[%emt 0:00:01]} 24. Rdg1 {[%emt 0:00:24]} (24. Bxh6 $6 Ng6 $16) 24... Ng6 {[%emt 0:00:05]} 25. fxg6 {[%emt 0:00:01]} f6 {[%emt 0:00:03]} 26. Bc4+ {[%emt 0:00:13]} Kh8 {[%emt 0:00:09]} 27. Rg3 {[%emt 0:00:30]} f5 {[%emt 0:01:25]} 28. Rf3 {[%emt 0:00:06]} Rf8 {[%emt 0:00:03]} 29. Bf7 {[%emt 0:00:13]} Nd8 {[%emt 0:00:06]} 30. Rxf5 {[%emt 0:01:07]} Nxf7 {[%emt 0:00:02]} 31. gxf7 {[%emt 0:00:00]} Kh7 {[%emt 0:00:44]} 32. Re1 {[%emt 0:00:29]} ({Resist} 32. Rxh5 Rxf7 33. f4 Re8 $16) 32... Kg6 {[%emt 0:00:11]} 33. Rf3 {[%emt 0:00:01]} Bf6 {[%emt 0:00:01]} 34. Bxh6 {[%emt 0:01:11]} Rxf7 {[%emt 0:00:08]} 35. Bd2 {[%emt 0:00:04]} Rg8 {[%emt 0:00:57]} 36. Kc2 {[%emt 0:00:29]} Kh7 {[%emt 0:00:22]} (36... Kg7 $16 37. Rf5 Kg6) 37. Rf5 {[%emt 0:00:50]} (37. Re6 $18 Rg6 38. Rf5) 37... Kg6 $16 {[%emt 0:00:13]} 38. Rd5 {[%emt 0:00:10]} Rh7 {[%emt 0:00:07]} 39. Kd3 {[%emt 0:00:09]} Kf7 {[%emt 0:00:04]} (39... Rgg7 $16 {might work better.} 40. c4 Be7) 40. Rf5 $18 {[%emt 0:00:01]} Rg2 {[%emt 0:00:07]} 41. Re3 {[%emt 0:00:58]} Kg6 {[%emt 0:00:02]} 42. Ref3 {[%emt 0:00:36]} Be7 {[%emt 0:00:11]} 43. Be3 {[%emt 0:00:18]} Rg1 {[%emt 0:00:23]} 44. a4 {[%emt 0:00:32]} Rh1 {[%emt 0:00:05]} 45. Ke4 {[%emt 0:00:37]} Rg1 {[%emt 0:00:11]} 46. Rg3+ {[%emt 0:00:30]} (46. Kd5 $18 {has better winning chances.}) 46... Rxg3 $16 {[%emt 0:00:03]} 47. fxg3 {[%emt 0:00:00]} Bf6 {[%emt 0:00:10]} 48. Rf3 {[%emt 0:00:14]} c6 {[%emt 0:00:09]} 49. Kd3 {[%emt 0:00:04]} d5 {[%emt 0:00:05]} 50. a5 {[%emt 0:00:15]} Rf7 {[%emt 0:00:11]} 51. Ke2 {[%emt 0:00:09]} (51. Bf4 $16) 51... Bd8 $1 $11 {[%emt 0:00:03]} 52. Rxf7 {[%emt 0:00:28]} Kxf7 {[%emt 0:00:00]} 53. b4 {[%emt 0:00:00]} Kg6 {[%emt 0:00:02]} 54. Kf3 {[%emt 0:00:05]} Kf5 {[%emt 0:00:01]} 55. Bf4 {[%emt 0:00:01]} Be7 {[%emt 0:00:07]} 56. Bh6 {[%emt 0:00:10]} Bd8 {[%emt 0:00:08]} 57. Bd2 {[%emt 0:00:17]} Be7 {[%emt 0:00:05]} 58. Be1 {[%emt 0:00:08]} Bg5 {[%emt 0:00:05]} 59. g4+ {[%emt 0:00:01]} hxg4+ {[%emt 0:00:01]} 60. hxg4+ {[%emt 0:00:00]} Kg6 {[%emt 0:00:04]} 61. Ke2 {[%emt 0:00:03]} Bf4 {[%emt 0:00:12]} 62. Bh4 {[%emt 0:00:03]} Bd6 {[%emt 0:00:06]} 63. Kf3 {[%emt 0:00:02]} Bf8 {[%emt 0:00:04]} 64. Bg3 {[%emt 0:00:09]} Bh6 {[%emt 0:00:02]} 65. Bf4 {[%emt 0:00:01]} Bf8 {[%emt 0:00:01]} 66. Ke3 {[%emt 0:00:10]} Be7 {[%emt 0:00:02]} 67. Kd3 {[%emt 0:00:02]} Bf8 {[%emt 0:00:01]} ({Black should play} 67... Bg5 $11 68. Be3 Bh4) 68. Bd2 {[%emt 0:00:04]} Be7 {[%emt 0:00:01]} 69. c4 {[%emt 0:00:14]} (69. Bc1 $14) 69... Bf8 {[%emt 0:00:01]} 70. cxd5 {[%emt 0:00:05]} cxd5 {[%emt 0:00:00]} 71. Kc3 {[%emt 0:00:01]} Be7 {[%emt 0:00:03]} 72. Kb3 {[%emt 0:00:10]} Bd6 {[%emt 0:00:10]} 73. Ka4 {[%emt 0:00:04]} Be7 {[%emt 0:00:02]} 74. b5 {[%emt 0:00:02]} Bd6 {[%emt 0:00:02]} 75. b6 {[%emt 0:00:13]} Be7 {[%emt 0:00:04]} 76. Kb3 {[%emt 0:00:01]} Bd6 {[%emt 0:00:03]} 77. Kc3 {[%emt 0:00:02]} Be7 {[%emt 0:00:00]} 78. Kd3 {[%emt 0:00:01]} Bd6 {[%emt 0:00:02]} 79. Ke2 {[%emt 0:00:01]} Be7 {[%emt 0:00:01]} 80. Kf3 {[%emt 0:00:01]} Bd6 {[%emt 0:00:01]} 81. Kg2 {[%emt 0:00:08]} Be7 {[%emt 0:00:02]} 82. Kg3 {[%emt 0:00:01]} Bf6 {[%emt 0:00:08]} 83. Bc3 {[%emt 0:00:06]} Be7 {[%emt 0:00:06]} 84. Kf4 {[%emt 0:00:12]} Bd6+ {[%emt 0:00:01]} 85. Kf3 {[%emt 0:00:00]} Be7 {[%emt 0:00:02]} 86. Bd2 {[%emt 0:00:07]} Bd6 {[%emt 0:00:03]} 87. Kg2 {[%emt 0:00:09]} Be7 {[%emt 0:00:02]} 88. Kh3 {[%emt 0:00:05]} Bf6 {[%emt 0:00:02]} 89. Bc3 {[%emt 0:00:01]} Be7 {[%emt 0:00:02]} 90. Kg3 {[%emt 0:00:13]} Bd6+ {[%emt 0:00:02]} 91. Kf3 {[%emt 0:00:00]} Be7 {[%emt 0:00:02]} 92. Kg3 {[%emt 0:00:01]} Bd6+ {[%emt 0:00:01]} 93. Kf3 {[%emt 0:00:00]} 1/2-1/2

[Event "AI Cup Div-1 2023"]
[Site "Online"]
[Date "2023.09.26"]
[Round "2.1"]
[White "Vachier-Lagrave, Maxime"]
[Black "Mamedyarov, Shakhriyar"]
[Result "1/2-1/2"]
[Annotator "TA"]
[ECO "C92"]
[WhiteElo "2727"]
[BlackElo "2734"]
[PlyCount "75"]
[EventDate "2023.09.18"]
[EventType "k.o."]
[EventCountry "NET"]
[SourceTitle "playchess.com"]
[Source "ChessBase"]
[SourceQuality "1"]
[TimeControl "900+3"]

{[%evp 19,75,34,49,50,44,38,23,0,69,56,65,52,70,43,56,-11,-7,-8,-11,-10,0,-11,0,-19,16,12,14,0,0,0,0,0,0,0,0,0,0,0,0,0,0,0,0,0,0,0,0,0,0,0,0,0,0,0,0,0,0,0]} 1. e4 {[%emt 0:00:03]} e5 {[%emt 0:00:05]} 2. Nf3 {[%emt 0:00:02]} Nc6 {[%emt 0:00:01]} 3. Bb5 {[%emt 0:00:01][%cal Bf1b5,Bb5a4,Ba4b3][%mdl 32]} a6 {[%emt 0:00:02]} 4. Ba4 {[%emt 0:00:01]} Nf6 {[%emt 0:00:03]} 5. O-O {[%emt 0:00:01]} Be7 {[%emt 0:00:05]} 6. Re1 {[%emt 0:00:05]} b5 {[%emt 0:00:01]} 7. Bb3 {[%emt 0:00:01]} d6 {[%emt 0:00:01]} 8. c3 {[%emt 0:00:03]} O-O {[%emt 0:00:01]} 9. h3 {[%emt 0:00:01]} Be6 {[%emt 0:00:01]} 10. Bxe6 {[%emt 0:01:06]} fxe6 {[%emt 0:00:03]} 11. d4 {[%emt 0:00:01] C92: Closed Ruy Lopez: 9...Be6, Karpov and Flohr-Zaitsev Variations.} Qe8 {[%emt 0:00:26] [#]} 12. Bg5 $146 {[%emt 0:00:39][%cal Bc1g5,Bg5h4,Bh4g3][%mdl 32]} ({Predecessor:} 12. a4 Rb8 13. axb5 axb5 14. Ng5 Qd7 15. Ra6 Ra8 16. Rxa8 Rxa8 17. Qb3 d5 18. Qxb5 Nxe4 19. Nxe4 dxe4 20. dxe5 {½-½ Niemann,H (2708)-Kovalev,V (2612) Dubai op-A 23rd 2023 (6)}) 12... h6 {[%emt 0:01:22]} 13. Bh4 {[%emt 0:00:54] White has an edge.} g5 {[%emt 0:04:17]} (13... Nh5 $11) 14. Bg3 $14 {[%emt 0:00:31]} Nh5 {[%emt 0:00:36]} 15. a4 {[%emt 0:00:52]} bxa4 {[%emt 0:01:08]} 16. d5 {[%emt 0:01:46]} (16. Bh2 $5 {[%cal Rd1a4]}) 16... Nd8 {[%emt 0:00:22][%cal Bc6d8,Bd8b7,Bb7c5][%mdl 32]} 17. Qxa4 {[%emt 0:00:02]} (17. Rxa4 $14 exd5 18. exd5 (18. Qxd5+ Kh7 $11)) 17... Qxa4 $11 {[%emt 0:01:05] The position is equal.} 18. Rxa4 {[%emt 0:00:03]} exd5 {[%emt 0:00:07]} 19. exd5 {[%emt 0:00:01]} Nb7 {[%emt 0:00:40]} 20. Nbd2 {[%emt 0:00:58]} Nc5 {[%emt 0:00:30]} 21. Ra5 {[%emt 0:00:31]} Nb7 {[%emt 0:00:18]} 22. Ra3 {[%emt 0:00:26]} a5 {[%emt 0:00:03]} 23. Ne4 {[%emt 0:01:02]} Nf6 {[%emt 0:00:01]} 24. Nxf6+ {[%emt 0:00:02]} Bxf6 {[%emt 0:00:00]} 25. Nd2 {[%emt 0:01:53]} Nc5 {[%emt 0:00:01]} 26. Ne4 {[%emt 0:00:01]} Nxe4 {[%emt 0:00:05]} 27. Rxe4 {[%emt 0:00:00]} Rfb8 {[%emt 0:00:05]} 28. b3 {[%emt 0:00:11]} Rb5 {[%emt 0:00:06]} 29. c4 {[%emt 0:00:01]} Rb4 {[%emt 0:00:05]} 30. f3 {[%emt 0:02:03]} a4 {[%emt 0:00:02]} 31. Rxa4 {[%emt 0:00:02]} Raxa4 {[%emt 0:00:02]} 32. bxa4 {[%emt 0:00:00]} Rxa4 {[%emt 0:00:00]} 33. h4 {[%emt 0:00:05]} gxh4 {[%emt 0:00:41]} 34. Bxh4 {[%emt 0:00:03]} Bxh4 {[%emt 0:00:01]} 35. Rxh4 {[%emt 0:00:01] KR-KR} Kg7 {[%emt 0:00:01]} 36. Kh2 {[%emt 0:00:15]} c6 {[%emt 0:00:13]} 37. dxc6 {[%emt 0:00:24] [#] Hoping for Rg4+.} Ra6 {[%emt 0:00:02]} 38. Rg4+ {[%emt 0:00:07] Weighted Error Value: White=0.09 (flawless) /Black=0.08 (flawless)} (38. c7 $5 Rc6 $8 39. Rg4+ Kf6 40. Rh4 $11) 1/2-1/2

[Event "AI Cup Div-1 2023"]
[Site "Online"]
[Date "2023.09.26"]
[Round "2.2"]
[White "Nepomniachtchi, Ian"]
[Black "Carlsen, Magnus"]
[Result "1/2-1/2"]
[Annotator "TA"]
[ECO "B51"]
[WhiteElo "2771"]
[BlackElo "2839"]
[PlyCount "87"]
[EventDate "2023.09.18"]
[EventType "k.o."]
[EventCountry "NET"]
[SourceTitle "playchess.com"]
[Source "ChessBase"]
[SourceQuality "1"]
[TimeControl "900+3"]

{[%evp 9,87,0,0,0,7,4,5,10,14,0,0,12,14,0,0,-12,48,54,38,37,63,0,71,41,103,94,104,95,102,92,97,99,112,54,44,39,36,35,35,-29995,45,33,27,25,28,20,81,68,158,161,146,134,155,154,222,137,106,137,78,46,82,0,0,0,0,0,0,0,14,14,0,0,0,0,0,0,0,0,0,0]} 1. e4 {[%emt 0:00:04]} c5 {[%emt 0:00:05]} 2. Nf3 {[%emt 0:00:01]} d6 {[%emt 0:00:01]} 3. Bb5+ {[%emt 0:00:02]} Nd7 {[%emt 0:00:22]} 4. O-O {[%emt 0:00:03]} a6 {[%emt 0:00:04]} (4... Ngf6 5. Re1 a6 6. Bf1 b6 7. c4 Bb7 8. Nc3 Ne5 9. a3 e6 10. b4 Be7 11. Rb1 Qc7 12. d3 O-O 13. Nxe5 dxe5 14. bxc5 Bxc5 15. Na4 Bd4 16. Be3 Bxe3 17. fxe3 {½-½ Nepomniachtchi,I (2789)-Carlsen,M (2847) Carlsen Inv KO rapid 2021 (2.14)}) 5. Be2 {[%emt 0:00:01]} Ngf6 {[%emt 0:00:11]} 6. d3 {[%emt 0:00:03] B51: Sicilian: Moscow Variation (3 Bb5+) without 3...Bd7.} e6 {[%emt 0:01:46]} 7. a4 {[%emt 0:00:03]} b6 {[%emt 0:00:16]} 8. Nfd2 {[%emt 0:00:03]} Be7 {[%emt 0:00:24]} 9. f4 {[%emt 0:00:02]} O-O {[%emt 0:00:00] [#]} 10. Bf3 $146 {[%emt 0:00:05]} ({Predecessor:} 10. Qe1 Bb7 11. Nc3 Nb8 12. g4 Nc6 13. g5 Nd7 14. Nf3 Nd4 15. Bd1 e5 16. h4 {½-½ Sadhwani,R (2627)-Giri,A (2768) Chessable Masters Div 2 Lose rapid 2023 (1.2)}) 10... Bb7 {[%emt 0:00:12]} 11. Nc3 {[%emt 0:00:04]} d5 {[%emt 0:00:17]} 12. g4 {[%emt 0:02:34][%cal Bg2g4,Bg4g5][%mdl 32]} Nb8 {[%emt 0:00:11]} (12... h6 $11) 13. g5 $14 {[%emt 0:00:45]} Ne8 {[%emt 0:00:02]} 14. exd5 {[%emt 0:01:11]} exd5 {[%emt 0:00:01]} 15. Bg2 {[%emt 0:00:11]} (15. Re1 $14) 15... Nc7 {[%emt 0:00:23]} (15... Ra7 $11) 16. Nc4 $1 $16 {[%emt 0:00:43][%mdl 64] Pin} Nc6 {[%emt 0:00:20]} (16... a5 $14) 17. Nxb6 {[%emt 0:00:07]} Rb8 {[%emt 0:00:26]} 18. Nbxd5 {[%emt 0:00:07]} ({Of course not} 18. Bxd5 $6 Nxd5 19. Nbxd5 (19. Ncxd5 Nb4 $15) 19... Nd4 $11) 18... Nxd5 {[%emt 0:00:02]} 19. Nxd5 {[%emt 0:00:03]} Nd4 {[%emt 0:00:03] [#]} 20. c4 {[%emt 0:00:20]} Bd6 {[%emt 0:00:02]} 21. Be3 {[%emt 0:01:32]} (21. Rb1 $16) 21... Nf5 {[%emt 0:00:33] White must now prevent ...Bxd5.} 22. Bd2 {[%emt 0:00:02]} Bxd5 {[%emt 0:00:08]} 23. Bxd5 {[%emt 0:00:03]} Rxb2 {[%emt 0:00:00]} 24. Bc3 $2 {[%emt 0:00:15][%mdl 8192] [#] A strong pair of Bishops.} (24. Rb1 $14 Rxb1 25. Qxb1) 24... Ne3 $2 {[%emt 0:01:10]} (24... Qxg5+ $1 {mates} 25. Kh1 Ng3+ 26. hxg3 Qh6+ 27. Qh5 Qxh5+ 28. Kg1 Qh2#) 25. Qe1 {[%emt 0:01:23] The board is on fire.} Nxd5 {[%emt 0:01:03]} 26. Bxb2 {[%emt 0:00:21]} Nxf4 {[%emt 0:00:02]} 27. Qh4 {[%emt 0:00:56]} Nxd3 {[%emt 0:03:22]} (27... Qc7 $1 $11) 28. Bc3 $36 {[%emt 0:00:04][%mdl 2048] Hoping for Rad1. White has good play.} Be5 {[%emt 0:00:53]} (28... Qe8 $14) 29. Bxe5 {[%emt 0:00:04]} Nxe5 {[%emt 0:00:00]} 30. Rae1 {[%emt 0:00:16]} Ng6 {[%emt 0:00:29]} 31. Qg4 {[%emt 0:00:05]} Re8 {[%emt 0:00:13]} (31... Qc7 $16 32. Re4 Rb8) 32. h4 {[%emt 0:00:09]} Rxe1 {[%emt 0:00:06]} 33. Rxe1 {[%emt 0:00:00][%mdl 4096] Endgame KQR-KQN} Nf8 {[%emt 0:00:05]} 34. Rf1 {[%emt 0:00:20]} g6 {[%emt 0:00:14]} 35. Qf3 {[%emt 0:00:11]} ({White should play} 35. a5 $16) 35... Qd4+ $11 {[%emt 0:00:04] The position is equal.} 36. Kg2 {[%emt 0:00:19]} Qxc4 {[%emt 0:00:01]} 37. a5 {[%emt 0:00:01]} Qe6 {[%emt 0:00:16]} 38. Rf2 {[%emt 0:00:10]} c4 {[%emt 0:00:03]} 39. Re2 {[%emt 0:00:03][%mdl 1024] White has compensation.} Qd7 {[%emt 0:00:09]} 40. Qe4 {[%emt 0:00:28]} Qc7 {[%emt 0:00:21]} 41. Qe5 {[%emt 0:00:15]} Qd7 {[%emt 0:00:03]} 42. Qe4 {[%emt 0:00:14] Active counter play!} Qc7 {[%emt 0:00:25]} 43. Qe5 {[%emt 0:00:01]} Qd7 {[%emt 0:00:02]} 44. Qe4 {[%emt 0:00:01] What a bad dream for Black.   Weighted Error Value: White=0.24 (precise) /Black=0.36} 1/2-1/2

[Event "AI Cup Div-1 2023"]
[Site "Online"]
[Date "2023.09.26"]
[Round "2.2"]
[White "Mamedyarov, Shakhriyar"]
[Black "Vachier-Lagrave, Maxime"]
[Result "1/2-1/2"]
[Annotator "TA"]
[ECO "D78"]
[WhiteElo "2734"]
[BlackElo "2727"]
[PlyCount "35"]
[EventDate "2023.09.18"]
[EventType "k.o."]
[EventCountry "NET"]
[SourceTitle "playchess.com"]
[Source "ChessBase"]
[SourceQuality "1"]
[TimeControl "900+3"]

{[%evp 11,35,0,17,-5,12,0,0,0,0,0,-9,-10,0,0,0,0,0,0,0,0,0,0,0,0,0,0]} 1. d4 {[%emt 0:00:08]} Nf6 {[%emt 0:00:04]} 2. c4 {[%emt 0:00:04]} g6 {[%emt 0:00:01]} 3. g3 {[%emt 0:00:01]} c6 {[%emt 0:00:01]} 4. Bg2 {[%emt 0:00:01]} d5 {[%emt 0:00:00]} 5. Nf3 {[%emt 0:00:01]} Bg7 {[%emt 0:00:00]} 6. O-O {[%emt 0:00:01]} O-O {[%emt 0:00:01] The position is equal.} 7. a4 {[%emt 0:00:00] D78: Fianchetto Grünfeld: 6 0-0 c6.} a5 {[%emt 0:00:00]} 8. Na3 {[%emt 0:00:21]} Be6 {[%emt 0:00:20] [#]} 9. cxd5 $146 {[%emt 0:00:05]} ({Predecessor:} 9. Qb3 Na6 10. Ng5 dxc4 11. Qxb7 Nb4 12. Nxe6 fxe6 13. Nxc4 Qxd4 14. Nxa5 Rxa5 15. Qxe7 {0-1 Adly,A (2607)-Antipov,M (2549) Wch Blitz Moscow 2019 (1)}) 9... Bxd5 {[%emt 0:00:03]} 10. b3 {[%emt 0:00:10]} Ne4 {[%emt 0:01:31]} 11. Nc4 {[%emt 0:00:49]} Na6 {[%emt 0:01:10][%cal Bb8a6,Ba6b4,Bb4a2][%mdl 32]} 12. Bb2 {[%emt 0:02:01]} Nd6 {[%emt 0:00:03]} 13. Rc1 {[%emt 0:00:17]} Nb4 {[%emt 0:00:15]} 14. e3 {[%emt 0:01:17]} Na2 {[%emt 0:00:37]} 15. Rc2 {[%emt 0:00:06]} Nb4 {[%emt 0:00:01]} 16. Rc1 {[%emt 0:00:01]} Na2 {[%emt 0:00:01]} 17. Rc2 {[%emt 0:00:04]} Nb4 {[%emt 0:00:01]} 18. Rc1 {[%emt 0:00:09] An uneventful encounter.   Weighted Error Value: White=0.03 (flawless) /Black=0.03 (flawless)} 1/2-1/2